Cogmind - Beta 11 X5 --- EXPLORER MODE // 2021.06.09 @ 21:21:01 Player: Sardaukar Result: Destroyed by Executioner with Helical Railgun Performance ------------- Evolutions (6) 3000 Regions Visited (16) 3200 Robots Destroyed (169) 845 Value Destroyed (7812) 7812 Prototype IDs (44) 880 Alien Tech Used (0) 0 Bonus (3730) 3730 TOTAL SCORE: 19467 Bonus ------- Follower Combat Kills 1151 Aligned with FarCom 300 Met Warlord at Base 500 MAIN.C Attacked Warlord 500 Warlord Defense Kill 1452 Friendly Fire -173 Cogmind --------- Core Integrity 0/1150 Matter 297/300 Energy 57/100 System Corruption 4% Temperature Cool (0) Movement Core (50) Location -4/Warlord Parts ------- > --- POWER (2) -------- (None) > --- PROPULSION (5) --- (None) > --- UTILITY (9) ------ (None) > --- WEAPON (4) ------- (None) > --- INVENTORY (5) ---- Improved System Shield Heavy Autocannon Peak State ------------ > --- POWER ------------ Reinforced Fission Core Particle Reactor > --- PROPULSION ------- Medium Treads Spiked Medium Treads Armored Medium Treads Heavy Siege Treads > --- UTILITY ---------- Advanced Heat Sink High-capacity Storage Unit Experimental Targeting Computer Improved Armor Integrity Analyzer Layered Light Armor Plating Centrium Medium Armor Plating Powered Armor Improved Powered Armor Improved Hacking Suite > --- WEAPON ----------- Enhanced Autogun Heavy Autocannon Micro-nuke Launcher > --- INVENTORY -------- Particle Reactor Advanced Heat Sink Matter Compressor Long-range Terrain Scanner Core Shielding Heavy Armor Plating Heavy Armor Plating Improved Medium Armor Plating Improved Hacking Suite Improved System Shield Makeshift Shrapnel Gun Railgun Railgun Gauss Cannon Mini Assault Cannon Katana [Rating: 123] Favorites ----------- Power Light Ion Engine Engine Light Ion Engine Power Core Reinforced Fission Core Reactor Particle Reactor Propulsion Flexi-carbon Leg Treads Medium Treads Leg Flexi-carbon Leg Wheel Wheel Utility Experimental Targeting Computer Device Advanced Heat Sink Storage High-capacity Storage Unit Processor Experimental Targeting Computer Hackware Improved Hacking Suite Protection Layered Light Armor Plating Weapon Mini Assault Cannon Energy Gun EM Pulse Gun Energy Cannon EM Pulse Cannon Ballistic Gun Enhanced Autogun Ballistic Cannon Mini Assault Cannon Launcher Rocket Launcher Slashing Weapon Katana Piercing Weapon Makeshift Spear Special Melee Weapon Dirty Datajack Build | -11 -10 -10 -10 -9 -8 -7 -7 -6 -5 -5 -5 -5 -4 -4 -4 -4 ------- Run | Scr Mat Min Exi Min Mat Fac Sto Fac Fac Ext Cet Arc Fac Upp Upp War Slots Evolved 13 | . 1 . . . 4 2 . 2 2 . . . 2 . . . Power 1 | . . . . . . . . . 1 . . . . . . . Propulsion 3 | . . . . . 2 . . 1 . . . . . . . . Utility 7 | . 1 . . . 2 1 . 1 . . . . 2 . . . Weapon 2 | . . . . . . 1 . . 1 . . . . . . . Parts Attached 235 | 7 13 7 4 2 41 4 24 12 24 12 13 8 11 11 5 37 Power 16 | 1 1 1 . . . . 1 1 3 2 2 1 . . . 3 Engine 3 | 1 1 1 . . . . . . . . . . . . . . Core 11 | . . . . . . . 1 1 3 2 2 . . . . 2 Reactor 2 | . . . . . . . . . . . . 1 . . . 1 Propulsion 44 | 2 2 2 . . 10 2 3 3 4 2 3 4 2 2 . 3 Treads 11 | . . . . . . . . . . . . 4 2 2 . 3 Leg 28 | 2 2 . . . 7 2 3 3 4 2 3 . . . . . Wheel 5 | . . 2 . . 3 . . . . . . . . . . . Hover . | . . . . . . . . . . . . . . . . . Flight . | . . . . . . . . . . . . . . . . . Utility 109 | 2 5 2 4 1 12 1 10 8 16 8 6 1 7 7 5 14 Device 49 | . 1 2 2 . 4 1 3 3 10 5 4 1 4 3 2 4 Storage 12 | 1 2 . 2 . . . 2 1 2 . . . . . . 2 Processor 7 | 1 . . . . 2 . 1 2 . 1 . . . . . . Hackware 4 | . . . . . . . . 1 . 1 . . 2 . . . Protection 37 | . 2 . . 1 6 . 4 1 4 1 2 . 1 4 3 8 Artifact . | . . . . . . . . . . . . . . . . . Weapon 66 | 2 5 2 . 1 19 1 10 . 1 . 2 2 2 2 . 17 Energy Gun 5 | 2 1 . . . 2 . . . . . . . . . . . Energy Cannon 6 | . . . . . 5 . 1 . . . . . . . . . Ballistic Gun 19 | . . 1 . . 3 . 3 . . . 2 2 1 1 . 6 Ballistic Cannon 21 | . 4 1 . . 5 1 5 . 1 . . . . . . 4 Launcher 11 | . . . . 1 4 . 1 . . . . . 1 1 . 3 Special Weapon . | . . . . . . . . . . . . . . . . . Impact Weapon . | . . . . . . . . . . . . . . . . . Slashing Weapon 1 | . . . . . . . . . . . . . . . . 1 Piercing Weapon 1 | . . . . . . . . . . . . . . . . 1 Special Melee Weapon 2 | . . . . . . . . . . . . . . . . 2 Unidentified Prototypes 9 | . . 1 2 . 1 . 3 . . . 1 . . . . 1 Parts Lost 42 | . . 4 . . . . 3 . . 4 5 1 1 1 1 22 Power 6 | . . 1 . . . . . . . 2 . . . . . 3 Propulsion 11 | . . 1 . . . . 1 . . . 4 1 . . . 4 Utility 17 | . . . . . . . 1 . . 2 1 . 1 1 1 10 Weapon 8 | . . 2 . . . . 1 . . . . . . . . 5 Highest Loss Streak 22 | . . 4 . . . . 2 . . 3 2 1 1 1 1 22 Average Slot Usage (%) 97 | . 98 92 100 100 96 100 99 99 99 98 94 93 95 94 95 93 Engine 3 | . 12 10 12 12 8 7 . . . . . . . . . . Core 4 | . . . . . . . 6 6 10 9 9 7 5 5 5 4 Reactor 1 | . . . . . . . . . . . . 2 5 5 5 4 Treads 5 | . . . . . . . . . . . . 15 20 20 20 19 Leg 16 | . 25 2 . . 28 28 27 30 27 27 23 5 . . . . Wheel 3 | . . 16 25 25 2 . . . . . . . . . . . Device 7 | . . 15 25 22 4 7 2 3 6 3 5 13 13 11 8 3 Storage 6 | . 12 8 6 12 8 7 11 6 5 5 5 5 5 5 5 4 Processor 13 | . 11 . . . 11 14 18 25 22 20 16 13 10 10 10 9 Hackware 1 | . . . . . . . . 2 . . . . 10 8 5 4 Protection 10 | . 11 12 5 2 15 14 10 6 3 6 10 5 6 9 16 21 Ballistic Gun 7 | . . 10 12 9 1 . . . . . 8 21 19 19 20 18 Ballistic Cannon 11 | . 21 12 12 12 6 7 18 18 22 22 13 . . . . . Naked Turns 3 | . . . . . . . . . . . . . . . . 3 Heaviest Build 139 | 16 30 14 50 52 71 73 75 67 76 88 100 101 112 116 122 139 Greatest Support 153 | 20 20 20 20 20 53 66 66 92 96 100 98 106 153 153 153 153 Greatest Overweight (x) 6 | . 1 3 2 2 6 1 1 1 . . 1 1 1 . . 1 Average Overweight (x) . | . . . . 2 1 1 . . . . . . . . . . Largest Inventory Capacity 35 | 10 15 5 20 20 20 20 20 20 25 20 20 20 20 20 20 35 Average Capacity 17 | 7 9 5 8 20 20 20 20 20 20 20 20 20 20 20 20 19 Most Carried 21 | 5 10 5 6 6 14 13 20 20 21 20 20 20 20 20 20 20 Average Carried 14 | 2 5 4 4 4 8 11 16 18 18 18 18 18 18 19 18 18 Final Capacity 20 | 10 5 5 20 20 20 20 20 20 20 20 20 20 20 20 20 5 Final Carried 20 | 5 4 5 5 6 13 12 18 20 20 19 18 20 20 20 18 3 Class Distribution -------------------- 41% | Hacker-Gunner 30% | Hacker-Mutant 9% | Scavenger-Tank 7% | Hacker-Tank 4% | Hacker-Skirmisher 4% | Scavenger-Gunner Dominant Class ---------------- Hacker-Mutant | -10/Materials Hacker-Mutant | -10/Mines Hacker-Mutant | -10/Exiles Hacker-Skirmisher | -9/Mines Hacker-Mutant | -8/Materials Hacker-Tank | -7/Factory Hacker-Gunner | -7/Storage Hacker-Gunner | -6/Factory Hacker-Gunner | -5/Factory Hacker-Gunner | -5/Extension Hacker-Gunner | -5/Cetus Scavenger-Gunner | -5/Archives Hacker-Gunner | -4/Factory Hacker-Gunner | -4/Upper Caves Scavenger-Tank | -4/Upper Caves Scavenger-Tank | -4/Warlord Resources | -11 -10 -10 -10 -9 -8 -7 -7 -6 -5 -5 -5 -5 -4 -4 -4 -4 ----------- Run | Scr Mat Min Exi Min Mat Fac Sto Fac Fac Ext Cet Arc Fac Upp Upp War Matter Collected 8628 | 213 367 370 . 61 634 165 748 431 977 1155 995 550 499 631 73 759 Remotely . | . . . . . . . . . . . . . . . . . Salvage Created 6013 | . 287 42 . 5 886 29 470 327 363 599 347 680 551 911 129 387 Parts 309 | . 25 . . 6 44 . 38 15 21 19 10 41 38 35 6 11 Haulers Intercepted 8 | . 2 . . . 3 . 3 . . . . . . . . . Recyclers Shooed 3 | . . . . . 1 . 1 . . . . . 1 . . . Parts Field Recycled . | . . . . . . . . . . . . . . . . . Retrieved Matter . | . . . . . . . . . . . . . . . . . Parts Self-Destructed . | . . . . . . . . . . . . . . . . . Prevented . | . . . . . . . . . . . . . . . . . Kills | -11 -10 -10 -10 -9 -8 -7 -7 -6 -5 -5 -5 -5 -4 -4 -4 -4 ------- Run | Scr Mat Min Exi Min Mat Fac Sto Fac Fac Ext Cet Arc Fac Upp Upp War Combat Hostiles Destroyed 132 | . 6 11 . 2 19 1 12 7 12 15 12 4 6 13 2 10 Guns 32 | . 1 4 . . 2 . . . . . 1 4 6 12 2 . Cannons 72 | . 4 7 . . 6 1 9 7 12 15 11 . . . . . AOE 28 | . 1 . . 2 11 . 3 . . . . . . 1 . 10 Classes Destroyed 18 | . 5 1 . . 2 . 3 1 . 2 . . . 1 . 3 Worker 2 | . . . . . 1 . . . 1 . . . . . . . Builder 5 | . . . . . . . . . . 5 . . . . . . Hauler 8 | . 2 . . . 3 . 3 . . . . . . . . . Recycler 5 | . 3 . . . 2 . . . . . . . . . . . Operator 11 | . . . . . . . 1 1 . . . 9 . . . . Watcher 17 | . 2 . . . 3 . 1 1 4 1 1 . 4 . . . Swarmer 16 | . 4 . . 2 5 . 1 . 4 . . . . . . . Grunt 53 | . 2 . . . 11 . 7 5 . 13 3 . . 5 2 5 Brawler 5 | . . . . . . . . . . 1 1 . . 3 . . Duelist 5 | . . . . . . . . 1 . 1 1 . . 2 . . Protector 1 | . . . . . . . . . . . . . . . . 1 Sentry 14 | . . . . . 3 1 2 1 . . . 4 2 1 . . Demolisher 1 | . . . . . . . . . . . . . . . . 1 Hunter 8 | . . . . . . . 1 . 3 . 2 . . . . 2 Programmer 12 | . . . . . . . 1 . 5 . 1 . 4 1 . . Cetus Guard 4 | . . . . . . . . . . . 4 . . . . . Striker 1 | . . . . . . . . . . . . . . . . 1 Assembled 11 | . . 11 . . . . . . . . . . . . . . Mutant 1 | . . . . . . . . . . . . . . 1 . . Best Kill Streak 7 | . 3 5 . 2 7 1 7 3 4 6 3 4 4 6 2 5 Combat Bots Only 7 | . 3 5 . 2 3 1 7 3 4 6 3 3 2 6 2 5 Max Kills in Single Turn 3 | . 2 1 . 2 3 1 1 2 2 2 1 1 1 2 1 3 Gunslinging 1 | . . . . . . . . . . . . . . 1 . . Exploded 3 | . 1 . . 2 2 . 1 . . . . . . 1 . 3 Melee . | . . . . . . . . . . . . . . . . . Uniques/NPCs Destroyed . | . . . . . . . . . . . . . . . . . Combat | -11 -10 -10 -10 -9 -8 -7 -7 -6 -5 -5 -5 -5 -4 -4 -4 -4 -------- Run | Scr Mat Min Exi Min Mat Fac Sto Fac Fac Ext Cet Arc Fac Upp Upp War Damage Taken 12028 | . 257 530 . 38 515 58 829 228 385 1210 1021 288 307 791 75 5496 Core 1879 | . 127 114 . . 40 3 102 28 52 183 59 18 . 54 . 1099 Absorbed by Shields . | . . . . . . . . . . . . . . . . . Reduced by Siege Mode 85 | . . . . . . . . . . . . . . . . 85 Core Remaining (%) 74 | 100 . . . 3 92 . 85 96 . . . 68 . . . . Volleys Fired 375 | . 32 26 . 3 37 2 25 15 23 44 38 42 29 36 4 19 Largest 4 | . 2 2 . 1 2 3 3 3 4 4 4 4 4 4 4 4 Hottest 192 | . 75 75 . 33 126 140 144 144 192 192 192 100 100 124 100 167 Shots Fired 1178 | . 64 50 . 3 68 6 64 45 81 151 148 168 100 144 16 70 Gun 568 | . 6 20 . . 20 . . . . . 48 168 98 142 16 50 Cannon 569 | . 58 30 . . 32 4 60 45 81 151 100 . . . . 8 Launcher 41 | . . . . 3 16 2 4 . . . . . 2 2 . 12 Special . | . . . . . . . . . . . . . . . . . Kinetic 1099 | . 58 46 . . 32 2 54 45 81 151 148 168 98 142 16 58 Thermal 5 | . . . . . 5 . . . . . . . . . . . Explosive 41 | . . . . 3 16 2 4 . . . . . 2 2 . 12 Electromagnetic 33 | . 6 4 . . 15 2 6 . . . . . . . . . Robot Hit Streak 43 | . 15 23 . . 14 10 16 17 43 40 27 29 36 31 12 22 Robot Miss Streak 4 | . 1 2 . 3 4 1 4 1 1 2 2 2 2 1 1 2 Penetration Max 2 | . . . . . . . . . . . . . . . . 2 Secondary Targets 3 | . . . . . . . . . . . . . 1 2 . . Max Gunslinging Chain 1 | . . . . . . . . . . . . . 1 1 . . Shots Hit Robots 865 | . 40 36 . . 54 6 43 29 54 77 111 138 79 123 14 61 Core Hits 464 | . 13 19 . 2 60 7 32 19 28 43 49 55 28 54 6 49 Critical Kills 1 | . . . . . 1 . . . . . . . . . . . Critical Parts Destroyed 4 | . . . . . . . . . . . . 3 . . . 1 Critical Strikes 33 | . 1 1 . . 2 . 5 3 6 6 4 3 . . . 2 Destroy 5 | . . . . . 1 . . . . . . 3 . . . 1 Blast 28 | . 1 1 . . 1 . 5 3 6 6 4 . . . . 1 Melee Attacks . | . . . . . . . . . . . . . . . . . Impact . | . . . . . . . . . . . . . . . . . Slashing . | . . . . . . . . . . . . . . . . . Piercing . | . . . . . . . . . . . . . . . . . Sneak Attacks . | . . . . . . . . . . . . . . . . . Combat Hostiles . | . . . . . . . . . . . . . . . . . Follow-up Attacks . | . . . . . . . . . . . . . . . . . Damage Inflicted 22857 | . 692 596 . 136 1951 148 1672 828 1631 2325 2535 2389 1403 2322 253 3976 Guns 7822 | . 62 138 . . 233 . . . . . 499 2389 1401 1934 253 913 Cannons 9435 | . 630 451 . . 542 108 965 826 1517 2177 2036 . . . . 183 Explosions 5542 | . . . . 136 1167 40 670 . 114 147 . . . 388 . 2880 Melee . | . . . . . . . . . . . . . . . . . Ramming 58 | . . 7 . . 9 . 37 2 . 1 . . 2 . . . Kinetic 16797 | . 630 568 . . 526 64 881 826 1517 2177 2535 2389 1401 1934 253 1096 Thermal 371 | . . . . . 57 . 53 . 114 147 . . . . . . Explosive 5228 | . . . . 136 1167 40 617 . . . . . . 388 . 2880 Electromagnetic 403 | . 62 21 . . 192 44 84 . . . . . . . . . Impact . | . . . . . . . . . . . . . . . . . Slashing . | . . . . . . . . . . . . . . . . . Piercing . | . . . . . . . . . . . . . . . . . Highest Corruption 4 | . . . . . . . . . 2 . . . 3 2 2 4 Average Corruption 1 | . . . . . . . . . 1 . . . 2 1 2 2 Corruption Purged 6 | . . . . . . . . . 3 . . . 3 . . . Effects 13 | . . . . . . . . . 4 . . . 1 2 2 4 Message Errors 7 | . . . . . . . . . 3 . . . 1 2 1 . Matter Fused 1 | . . . . . . . . . . . . . . . . 1 Heat Flow Errors 3 | . . . . . . . . . . . . . . . 1 2 Data Loss (minor) 2 | . . . . . . . . . 1 . . . . . . 1 Overload Shots . | . . . . . . . . . . . . . . . . . Overflow Damage 220 | . 7 20 . 22 28 . 4 . 38 19 . . . 21 . 61 Projectiles 108 | . 7 20 . . 24 . . . 38 19 . . . . . . Explosions 112 | . . . . 22 4 . 4 . . . . . . 21 . 61 Melee . | . . . . . . . . . . . . . . . . . Knockbacks 94 | . 8 11 . . 11 . 4 14 24 17 4 . . . . 1 Impact . | . . . . . . . . . . . . . . . . . Kinetic 83 | . 8 9 . . 8 . 4 12 23 14 4 . . . . 1 Secondary 11 | . . 2 . . 3 . . 2 1 3 . . . . . . Self-Inflicted Damage 280 | . . . . 26 31 . 29 . 72 11 . . . . . 111 Shots 7 | . . . . 1 1 . 1 . 1 1 . . . . . 2 Rammed 1 | . . . . . . . . . . . . . 1 . . . Targets Rammed 9 | . . 1 . . 2 . 3 1 . 1 . . 1 . . . Kicked 8 | . . 1 . . 2 . 3 1 . 1 . . . . . . Crushed . | . . . . . . . . . . . . . . . . . Highest Temperature 613 | . 87 34 . . 241 174 465 518 362 613 368 107 43 187 232 414 Average Temperature 111 | . 19 15 . . 69 89 122 195 126 179 143 39 22 65 96 88 Received Heat Transfer 2831 | . 39 240 . . 342 30 393 108 . 559 126 63 63 156 45 667 Effects 30 | . . . . . . . 4 6 1 9 2 . . . . 8 Shutdowns 6 | . . . . . . . 1 2 . 2 . . . . . 1 Energy Bleed 2 | . . . . . . . 1 . 1 . . . . . . . Interference 14 | . . . . . . . . 4 . 2 2 . . . . 6 Matter Decay 1 | . . . . . . . . . . 1 . . . . . . Short Circuit 4 | . . . . . . . 2 . . 2 . . . . . . Damage (minor) 3 | . . . . . . . . . . 2 . . . . . 1 Siege Activations 7 | . . . . . . . . . . . . . 4 1 . 2 Total Turns 40 | . . . . . . . . . . . . . 13 7 . 20 Longest Duration 17 | . . . . . . . . . . . . . 9 7 . 17 Robots Corrupted . | . . . . . . . . . . . . . . . . . Combat Hostiles . | . . . . . . . . . . . . . . . . . Parts Fried 1 | . . . . . . . 1 . . . . . . . . . Impact Corruptions 1 | . . 1 . . . . . . . . . . . . . . Robots Melted . | . . . . . . . . . . . . . . . . . Combat Hostiles . | . . . . . . . . . . . . . . . . . Parts Melted 3 | . . . . . . . 2 . . . . . . . . 1 Heat Transferred 298 | . . . . . 148 . 50 . 50 50 . . . . . . Parts Sabotaged . | . . . . . . . . . . . . . . . . . Parts Stolen . | . . . . . . . . . . . . . . . . . Parts Stripped . | . . . . . . . . . . . . . . . . . Power Chain Reactions 1 | . . . . . . . 1 . . . . . . . . . Missiles Intercepted . | . . . . . . . . . . . . . . . . . Alert | -11 -10 -10 -10 -9 -8 -7 -7 -6 -5 -5 -5 -5 -4 -4 -4 -4 ------- Run | Scr Mat Min Exi Min Mat Fac Sto Fac Fac Ext Cet Arc Fac Upp Upp War Peak Influence 342 | . 153 42 . 71 342 59 334 250 182 251 287 176 237 . . . Initial 109 | . . 27 . . 19 44 18 109 27 65 82 14 2 . . . Average 95 | . 64 5 . 10 113 45 158 107 85 122 151 105 85 . . . Maximum Alert Level 1 | . . . . . 1 . 1 1 . 1 1 . 1 . . . Low Security (%) 84 | 100 100 100 . 100 68 100 68 86 100 82 49 100 80 . . . Level 1 15 | . . . . . 31 . 31 13 . 17 50 . 19 . . . Level 2 . | . . . . . . . . . . . . . . . . . Level 3 . | . . . . . . . . . . . . . . . . . Level 4 . | . . . . . . . . . . . . . . . . . Level 5 . | . . . . . . . . . . . . . . . . . High Security . | . . . . . . . . . . . . . . . . . Max Security . | . . . . . . . . . . . . . . . . . Squads Dispatched 30 | . 1 . . . 5 2 10 4 5 1 . . 2 . . . Investigation 15 | . 1 . . . 3 1 5 2 2 . . . 1 . . . Extermination 6 | . . . . . . . 1 1 3 . . . 1 . . . Reinforcement 8 | . . . . . 2 1 4 . . 1 . . . . . . Assault 1 | . . . . . . . . 1 . . . . . . . . Garrison . | . . . . . . . . . . . . . . . . . Intercept . | . . . . . . . . . . . . . . . . . Construction Impeded 4 | . . . . . 1 . 2 . . 1 . . . . . . Haulers Reinforced 2 | . . . . . . . 2 . . . . . . . . . Cargo Convoy Interrupts . | . . . . . . . . . . . . . . . . . Stealth | -11 -10 -10 -10 -9 -8 -7 -7 -6 -5 -5 -5 -5 -4 -4 -4 -4 --------- Run | Scr Mat Min Exi Min Mat Fac Sto Fac Fac Ext Cet Arc Fac Upp Upp War Distress Signals 6 | . . . . . 2 . 2 . . . 1 . . . . 1 Communications Jammed . | . . . . . . . . . . . . . . . . . Distress Signals . | . . . . . . . . . . . . . . . . . Times Spotted 253 | . 10 31 . 1 24 1 35 11 15 22 13 14 10 14 2 50 Peak Tracking Total 20 | . 4 19 . 1 5 1 6 3 4 7 5 1 4 7 2 20 Tactical Retreats 17 | . 1 7 . . 1 1 2 . . 5 . . . . . . Traps | -11 -10 -10 -10 -9 -8 -7 -7 -6 -5 -5 -5 -5 -4 -4 -4 -4 ------- Run | Scr Mat Min Exi Min Mat Fac Sto Fac Fac Ext Cet Arc Fac Upp Upp War Traps Triggered 12 | . 2 . . . . 1 4 . 4 1 . . . . . . Indirectly . | . . . . . . . . . . . . . . . . . Trap Hack Attempts . | . . . . . . . . . . . . . . . . . Triggered . | . . . . . . . . . . . . . . . . . Disarmed . | . . . . . . . . . . . . . . . . . Reprogrammed . | . . . . . . . . . . . . . . . . . Reused 2 | . . 2 . . . . . . . . . . . . . . Traps Extracted . | . . . . . . . . . . . . . . . . . Installed 4 | . . 4 . . . . . . . . . . . . . . Triggered 19 | . . . . . . . . . . . . . . 1 1 17 Machines | -11 -10 -10 -10 -9 -8 -7 -7 -6 -5 -5 -5 -5 -4 -4 -4 -4 ---------- Run | Scr Mat Min Exi Min Mat Fac Sto Fac Fac Ext Cet Arc Fac Upp Upp War Machines Disabled 30 | . 1 . . . 5 . 6 2 6 2 3 3 . 1 . 1 Max in Single Turn 5 | . 1 . . . 2 . 1 1 5 1 1 1 . 1 . . Garrison Access 3 | . . . . . . . 1 1 . . . . 1 . . . Energy Cycler 1 | . . . . . . . . . . 1 . . . . . . Machines Sabotaged . | . . . . . . . . . . . . . . . . . Garrisons Compromised . | . . . . . . . . . . . . . . . . . Overloaded Fab Kills . | . . . . . . . . . . . . . . . . . Fab Network Shutdowns . | . . . . . . . . . . . . . . . . . Hacking | -11 -10 -10 -10 -9 -8 -7 -7 -6 -5 -5 -5 -5 -4 -4 -4 -4 --------- Run | Scr Mat Min Exi Min Mat Fac Sto Fac Fac Ext Cet Arc Fac Upp Upp War Machines Accessed 49 | . 5 1 5 . 5 . 8 2 4 6 3 1 3 . . 6 Terminals 28 | . 4 . . . 4 . 5 2 2 6 3 . 2 . . . Fabricators . | . . . . . . . . . . . . . . . . . Repair Stations 3 | . . . . . . . 1 . 2 . . . . . . . Recycling Units 3 | . 1 . . . 1 . 1 . . . . . . . . . Scanalyzers . | . . . . . . . . . . . . . . . . . Garrison Access 2 | . . . . . . . 1 . . . . . 1 . . . Total Hacks 191 | . 16 1 50 . 18 . 20 7 9 21 6 25 7 . . 11 Successful 151 | . 13 1 50 . 14 . 13 2 2 13 4 25 3 . . 11 Failed 40 | . 3 . . . 4 . 7 5 7 8 2 . 4 . . . Catastrophic 4 | . . . . . . . . 1 1 . 1 . 1 . . . Database Lockouts . | . . . . . . . . . . . . . . . . . Manual 43 | . 3 . 2 . 7 . 13 4 3 3 . . 6 . . 2 Terminals 90 | . 14 . . . 16 . 15 7 5 21 6 . 6 . . . Fabricators . | . . . . . . . . . . . . . . . . . Repair Stations 7 | . . . . . . . 3 . 4 . . . . . . . Recycling Units 5 | . 2 . . . 2 . 1 . . . . . . . . . Scanalyzers . | . . . . . . . . . . . . . . . . . Garrison Access 2 | . . . . . . . 1 . . . . . 1 . . . Terminal Hacks 138 | . 11 1 50 . 11 . 9 2 1 12 4 25 1 . . 11 Record 85 | . . . 49 . . . 2 . . . 4 25 . . . 5 Robot Analysis 3 | . 1 . . . 2 . . . . . . . . . . . Prototype ID Bank 7 | . 1 . . . . . . . . . . . . . . 6 Open Door 3 | . . 1 . . . . . . . 2 . . . . . . Branch Access Points 5 | . 1 . . . 1 . . 1 1 1 . . . . . . Emergency Access Points 1 | . . . . . 1 . . . . . . . . . . . Terminal Index 4 | . 1 . . . 1 . 1 . . . . . 1 . . . Alert Level 8 | . 1 . . . 3 . 1 1 . 2 . . . . . . Unreport Threat 1 | . . . . . . . 1 . . . . . . . . . Locate Traps 5 | . 1 . . . . . 1 . . 3 . . . . . . Dispatch Records 2 | . . . . . . . 1 . . 1 . . . . . . Surveillance Status 1 | . 1 . . . . . . . . . . . . . . . Patrol Status 1 | . . . . . . . 1 . . . . . . . . . Assault Status 1 | . . . . . 1 . . . . . . . . . . . Recall Investigation 1 | . 1 . . . . . . . . . . . . . . . Hauler Manifests 1 | . . . . . 1 . . . . . . . . . . . Registered Components 2 | . 1 . . . . . 1 . . . . . . . . . Zone Layout 6 | . 2 . . . 1 . . . . 3 . . . . . . EX-Prototype ID Bank 1 | . . . 1 . . . . . . . . . . . . . Fabricator Hacks . | . . . . . . . . . . . . . . . . . Repair Station Hacks . | . . . . . . . . . . . . . . . . . Recycling Unit Hacks 3 | . 2 . . . 1 . . . . . . . . . . . Report Inventory 1 | . 1 . . . . . . . . . . . . . . . Retrieve Matter 1 | . . . . . 1 . . . . . . . . . . . Retrieve Components 1 | . 1 . . . . . . . . . . . . . . . Scanalyzer . | . . . . . . . . . . . . . . . . . Garrison Access Hacks 2 | . . . . . . . 1 . . . . . 1 . . . Seal Access 2 | . . . . . . . 1 . . . . . 1 . . . Unauthorized Hacks 8 | . . . . . 2 . 3 . 1 1 . . 1 . . . Terminals 5 | . . . . . 1 . 2 . . 1 . . 1 . . . Track 1 | . . . . . . . . . . 1 . . . . . . Botnet 2 | . . . . . . . 1 . . . . . 1 . . . Operators 1 | . . . . . 1 . . . . . . . . . . . Sabotage 1 | . . . . . . . 1 . . . . . . . . . Fabricators . | . . . . . . . . . . . . . . . . . Repair Stations 1 | . . . . . . . . . 1 . . . . . . . Mechanics 1 | . . . . . . . . . 1 . . . . . . . Recycling Units 2 | . . . . . 1 . 1 . . . . . . . . . Tunnel 2 | . . . . . 1 . 1 . . . . . . . . . Scanalyzers . | . . . . . . . . . . . . . . . . . Garrison Access . | . . . . . . . . . . . . . . . . . Data Cores Recovered 3 | . . . . . . . 2 1 . . . . . . . . Used 2 | . . . . . . . 1 1 . . . . . . . . Hacking Detections 28 | . 3 . . . 5 . 5 2 4 4 3 . 2 . . . Full Trace Events 14 | . 3 . . . 3 . 3 2 2 . . . 1 . . . Feedback Events 2 | . . . . . . . . . 1 . . . 1 . . . Corruption 2 | . . . . . . . . . 1 . . . 1 . . . Feedback Blocked . | . . . . . . . . . . . . . . . . . Robot Schematics Acquired . | . . . . . . . . . . . . . . . . . Robots Built . | . . . . . . . . . . . . . . . . . Matter . | . . . . . . . . . . . . . . . . . Time . | . . . . . . . . . . . . . . . . . Total Robot Build Rating . | . . . . . . . . . . . . . . . . . Part Schematics Acquired . | . . . . . . . . . . . . . . . . . Parts Built . | . . . . . . . . . . . . . . . . . Matter . | . . . . . . . . . . . . . . . . . Time . | . . . . . . . . . . . . . . . . . Total Part Build Rating . | . . . . . . . . . . . . . . . . . Parts Repaired . | . . . . . . . . . . . . . . . . . Time . | . . . . . . . . . . . . . . . . . Parts Recycled . | . . . . . . . . . . . . . . . . . Recycled Matter . | . . . . . . . . . . . . . . . . . Retrieved Matter 17 | . . . . . 17 . . . . . . . . . . . Retrieved Components 2 | . 2 . . . . . . . . . . . . . . . Parts Scanalyzed . | . . . . . . . . . . . . . . . . . Part Schematics Acquired . | . . . . . . . . . . . . . . . . . Parts Damaged . | . . . . . . . . . . . . . . . . . Bothacking | -11 -10 -10 -10 -9 -8 -7 -7 -6 -5 -5 -5 -5 -4 -4 -4 -4 ------------ Run | Scr Mat Min Exi Min Mat Fac Sto Fac Fac Ext Cet Arc Fac Upp Upp War Used RIF Installer . | . . . . . . . . . . . . . . . . . Robots Hacked . | . . . . . . . . . . . . . . . . . Non-combat . | . . . . . . . . . . . . . . . . . Combat . | . . . . . . . . . . . . . . . . . Robot Hacks Applied . | . . . . . . . . . . . . . . . . . Relay Couplers Released 2 | . . . . . . . . 2 . . . . . . . . Machine Destruction 2 | . . . . . . . . 2 . . . . . . . . Robots Rewired 5 | . . . . . . . . . . . . . . . . 5 Allies Hacked . | . . . . . . . . . . . . . . . . . Hacks Repelled . | . . . . . . . . . . . . . . . . . Allies | -11 -10 -10 -10 -9 -8 -7 -7 -6 -5 -5 -5 -5 -4 -4 -4 -4 -------- Run | Scr Mat Min Exi Min Mat Fac Sto Fac Fac Ext Cet Arc Fac Upp Upp War Total Allies 20 | . . . . 2 . . 7 . 3 3 . . . . . 5 Largest Group 5 | . . . . 2 2 . 3 2 3 3 . . . . . 5 Highest-Rated Group 249 | . . . . 41 38 . 164 132 93 190 . . . . . 249 Highest-Rated Ally 150 | . . . . 31 28 . 100 100 31 150 . . . . . 56 Total Orders 42 | . . 2 2 2 5 3 5 6 10 . . . . 4 3 . ROAM 3 | . . . . . 1 . . . 2 . . . . . . . EXPLORE 23 | . . 1 1 2 3 1 2 3 7 . . . . 2 1 . RETURN 16 | . . 1 1 . 1 2 3 3 1 . . . . 2 2 . Ally Attacks 193 | . . 1 . 6 23 2 74 4 27 16 . . . . . 40 Total Damage 4790 | . . 8 . 42 228 11 2603 37 278 306 . . . . . 1277 Kills 40 | . . 1 . 1 3 . 28 . 1 1 . . . . . 5 Allies Corrupted . | . . . . . . . . . . . . . . . . . Allies Melted 3 | . . . . . . . . . . . . . . . . 3 Intel | -11 -10 -10 -10 -9 -8 -7 -7 -6 -5 -5 -5 -5 -4 -4 -4 -4 ------- Run | Scr Mat Min Exi Min Mat Fac Sto Fac Fac Ext Cet Arc Fac Upp Upp War Robot Analysis Total 3 | . 1 . . . 2 . . . . . . . . . . . Derelict Logs Recovered 4 | . . 2 . . . . . . . . . . . 1 1 . Drone Launches 23 | . . 1 1 2 3 1 4 3 5 . . . . 2 1 . Drone Recoveries 19 | . . 1 1 2 2 1 4 3 3 . . . . 2 . . Exploration | -11 -10 -10 -10 -9 -8 -7 -7 -6 -5 -5 -5 -5 -4 -4 -4 -4 ------------- Run | Scr Mat Min Exi Min Mat Fac Sto Fac Fac Ext Cet Arc Fac Upp Upp War Turns Passed 12824 | 91 751 750 818 257 1319 525 1032 785 1183 1162 545 486 518 870 346 1386 Spaces Moved 7384 | 67 412 607 1002 217 568 217 550 375 648 713 219 221 234 430 170 734 Core 79 | 6 . 57 . . . . . . . . . . . . . 16 Treads 1735 | . . . . . . . . . . . . 183 234 430 170 718 Legs 3762 | 61 412 70 . . 459 217 550 375 648 713 219 38 . . . . Wheels 1808 | . . 480 1002 217 109 . . . . . . . . . . . Hover . | . . . . . . . . . . . . . . . . . Flight . | . . . . . . . . . . . . . . . . . Fastest Speed 50 | 50 120 80 80 110 100 200 120 122 122 120 120 162 162 167 167 50 Average Speed 136 | 113 135 92 80 110 183 200 153 129 122 121 186 168 167 167 167 165 Slowest Speed 440 | 120 200 200 110 110 440 200 200 200 122 122 202 203 263 167 167 272 Overloaded Moves . | . . . . . . . . . . . . . . . . . Propulsion Burnouts . | . . . . . . . . . . . . . . . . . Robots Hopped . | . . . . . . . . . . . . . . . . . Cave-ins Triggered 1 | . . . . . . . . . . 1 . . . . . . Time Travels 1 | . . . 1 . . . . . . . . . . . . . Exploration Rate (%) 53 | 5 57 98 95 89 43 12 76 8 20 65 63 78 5 70 59 71 Regions Visited 16 Branch Regions 10 Pre-discovered Areas 4 | . . . 1 . 1 . 1 . . . . . . 1 . . Known Exits Taken 16 | 1 1 1 1 1 1 1 1 1 1 1 1 1 1 1 1 . Unknown Exits Taken . | . . . . . . . . . . . . . . . . . Scrap Searched 2 | . . . . . . . . . . . . . . 1 1 . Spaces Dug 50 | . . . . 9 . . . . . 21 . . 20 . . . Terrain Destroyed 391 | . . . . 29 65 8 18 5 77 41 . . 47 41 . 60 Melee . | . . . . . . . . . . . . . . . . . Projectile 52 | . . . . . . . 7 5 7 29 . . . . . 4 AOE 339 | . . . . 29 65 8 11 . 70 12 . . 47 41 . 56 Terrain Rammed . | . . . . . . . . . . . . . . . . . Walls Destroyed . | . . . . . . . . . . . . . . . . . Machines Disabled . | . . . . . . . . . . . . . . . . . Actions | -11 -10 -10 -10 -9 -8 -7 -7 -6 -5 -5 -5 -5 -4 -4 -4 -4 --------- Run | Scr Mat Min Exi Min Mat Fac Sto Fac Fac Ext Cet Arc Fac Upp Upp War Total 9459 | 78 541 743 1010 231 775 305 687 637 989 905 278 299 332 547 228 874 Wait 1155 | . 64 80 . 7 84 73 41 225 262 128 2 2 49 63 49 26 Move 7368 | 66 411 606 1001 216 567 216 549 374 647 712 218 220 233 429 169 734 Hop . | . . . . . . . . . . . . . . . . . Pick Up 107 | 5 9 11 . 2 15 2 16 3 10 4 5 14 3 2 . 6 Fast Attach 53 | 7 6 3 2 . 11 . 5 3 . 1 1 1 4 5 . 4 Attach 59 | . 3 2 . . 7 2 6 1 2 2 5 1 4 1 2 21 Detach 29 | . 4 . 2 . 9 . 4 2 . . . . 2 . . 6 Swap 123 | . 4 2 2 2 23 2 13 8 22 9 7 6 3 5 3 12 Drop 124 | . 8 8 3 1 20 3 15 5 17 4 2 13 4 6 1 14 Fire 375 | . 32 26 . 3 37 2 25 15 23 44 38 42 29 36 4 19 Melee . | . . . . . . . . . . . . . . . . . Ram . | . . . . . . . . . . . . . . . . . Kick 8 | . . 1 . . 2 . 3 1 . 1 . . . . . . Crush 1 | . . . . . . . . . . . . . 1 . . . Escape Stasis 21 | . . . . . . 5 10 . 6 . . . . . . . Rewire 32 | . . . . . . . . . . . . . . . . 32 Trap 4 | . . 4 . . . . . . . . . . . . . . Miscellaneous . | . . . . . . . . . . . . . . . . . Route ------- -11/Scrapyard -10/Materials (discovered 2 exits: *Mat / *Min) -10/Mines (discovered 3 exits: *Mat x2 / *Exi) -10/Exiles (discovered 2 exits: *Min x2) -9/Mines -8/Materials -7/Factory (discovered 2 exits: *Fac / *Sto) -7/Storage -6/Factory (discovered 3 exits: *Fac / Low x2) -5/Factory (discovered 4 exits: Upp x2 / *Ext x2) -5/Extension (discovered 2 exits: *Fac / *Cet) -5/Cetus -5/Archives (discovered 3 exits: *Fac / *Hub x2) -4/Factory -4/Upper Caves -4/Upper Caves -4/Warlord (discovered 1 exit: *Pro) History --------- Turn | Location | Event 2 | -11/Scrapyard | Identified exit to Materials 2 | -11/Scrapyard | Discovered exit to Materials (range 16) 92 | -11/Scrapyard | Entered Materials 92 | -10/Materials | Evolved 1 slot: Utility x1 228 | -10/Materials | Identified exit to Mines 228 | -10/Materials | Discovered exit to Mines (range 14) 317 | -10/Materials | Build established: Hacker-Mutant 590 | -10/Materials | Core integrity fell below 50% 710 | -10/Materials | Identified exit to Materials 710 | -10/Materials | Discovered exit to Materials (range 15) 843 | -10/Materials | Entered Mines 885 | -10/Mines | Discovered exit to Materials (range 10) 903 | -10/Mines | Assembled infested the area 951 | -10/Mines | Core integrity fell below 20% 993 | -10/Mines | Lost 4 parts (1p1n2w) 1040 | -10/Mines | Learned location of 1 exit from Materials 1097 | -10/Mines | Found a hidden stash of uninstalled traps 1257 | -10/Mines | Discovered exit to Materials (range 6) 1364 | -10/Mines | Found the Drone Emporium 1370 | -10/Mines | Found Prototype Device 1371 | -10/Mines | Identified Thief Drone Bay 1409 | -10/Mines | Received a Rocket Launcher from a helpful Derelict 1589 | -10/Mines | Deemed a non-threat by the Exiles lab entrance 1590 | -10/Mines | Identified exit to Exiles 1590 | -10/Mines | Discovered exit to Exiles (range 5) 1593 | -10/Mines | Entered Exiles 1613 | -10/Exiles | Met 8R-AWN 1627 | -10/Exiles | Met EX-HEX 1668 | -10/Exiles | Met EX-BIN 1678 | -10/Exiles | Aligned with FarCom system 1679 | -10/Exiles | Given EX-Vault access code 1836 | -10/Exiles | Opened EX-Vault 1842 | -10/Exiles | Found Prototype Device 1842 | -10/Exiles | Identified Chronowheel 1842 | -10/Exiles | Activated Chronowheel 1842 | -10/Exiles | Spacetime reconverged on an earlier point 1847 | -10/Exiles | Found Prototype Device 1847 | -10/Exiles | Identified Supersonic Drone Bay 1859 | -10/Exiles | Identified exit to Mines 1859 | -10/Exiles | Discovered exit to Mines (range 54) 1865 | -10/Exiles | Discovered exit to Mines (range 63) 1869 | -10/Exiles | Warned to stay clear of 0b10 Research branches 1892 | -10/Exiles | Met EX-DEC 1993 | -10/Exiles | Visited The Gauntlet 2087 | -10/Exiles | Learned location of Zion (-6) 2411 | -10/Exiles | Left Exiles lab with Supersonic Drone Bay 2411 | -10/Exiles | Entered Mines 2609 | -9/Mines | Identified exit to Materials 2609 | -9/Mines | Discovered exit to Materials (range 17) 2668 | -9/Mines | Entered Materials 2668 | -8/Materials | Accompanied by 2 allies 2668 | -8/Materials | Evolved 4 slots: Propulsion x2, Utility x2 2669 | -8/Materials | Identified exit to Factory 2673 | -8/Materials | Led the pair of lost Derelicts to an unsafe place 3987 | -8/Materials | Entered Factory 3987 | -7/Factory | Evolved 2 slots: Utility x1, Weapon x1 3988 | -7/Factory | Identified exit to Storage 4295 | -7/Factory | Build established: Hacker-Tank 4351 | -7/Factory | Identified exit to Factory 4351 | -7/Factory | Discovered exit to Factory (range 4) 4512 | -7/Factory | Entered Storage 4629 | -7/Storage | Destroyed 7 combat bots 4677 | -7/Storage | Met 01-MTF 4851 | -7/Storage | Found Prototype Processor 4852 | -7/Storage | Identified Exp. Targeting Computer 4854 | -7/Storage | Found Exp. Targeting Computer 5148 | -7/Storage | Build established: Hacker-Gunner 5260 | -7/Storage | Discovered exit to Factory (range 7) 5544 | -7/Storage | Entered Factory 5544 | -6/Factory | Accompanied by 2 allies (01-MTF) 5544 | -6/Factory | Evolved 2 slots: Propulsion x1, Utility x1 5549 | -6/Factory | 01-MTF left 5862 | -6/Factory | Identified exit to Lower Caves 6184 | -6/Factory | Identified exit to Factory 6184 | -6/Factory | Discovered exit to Factory (range 8) 6329 | -6/Factory | Entered another Factory area 6329 | -5/Factory | Evolved 2 slots: Power x1, Weapon x1 6484 | -5/Factory | Allied Derelicts emerged from ambush trap array 6824 | -5/Factory | Identified exit to Upper Caves 6824 | -5/Factory | Identified exit to Extension 7373 | -5/Factory | Found Imp. Powered Armor 7512 | -5/Factory | Entered Extension 7869 | -5/Extension | Rescued a captive Derelict 7870 | -5/Extension | Rescued a captive Derelict 7884 | -5/Extension | Energy Cycler disabled 7884 | -5/Extension | Rescued a captive Derelict 7888 | -5/Extension | Rescued a captive Derelict 7892 | -5/Extension | Rescued A7 7892 | -5/Extension | Rescued a captive Derelict 7900 | -5/Extension | Rescued a captive Derelict 8280 | -5/Extension | Extracted ID and sensor layout for unrecognized location from A7's data core 8296 | -5/Extension | Spotted B-75 Beast 8403 | -5/Extension | Crushed by falling debris 8434 | -5/Extension | Lost 3 parts (1p2u) 8526 | -5/Extension | Identified exit to Cetus 8650 | -5/Extension | Identified exit to Factory 8650 | -5/Extension | Discovered exit to Factory (range 10) 8674 | -5/Extension | Entered Cetus 8691 | -5/Cetus | Spotted Cetus Guard 8691 | -5/Cetus | Spotted Cetus Guard 8700 | -5/Cetus | Spotted Cetus Guard 8701 | -5/Cetus | Destroyed Cetus Guard 8711 | -5/Cetus | Destroyed Cetus Guard 8718 | -5/Cetus | Destroyed Cetus Guard 8719 | -5/Cetus | Spotted Cetus Guard 8745 | -5/Cetus | Destroyed Cetus Guard 8793 | -5/Cetus | Cetus Manufacturing Module disabled 9028 | -5/Cetus | Identified exit to Archives 9028 | -5/Cetus | Discovered exit to Archives (range 16) 9219 | -5/Cetus | Entered Archives 9316 | -5/Archives | Discovered exit to Factory (range 16) 9339 | -5/Archives | Identified exit to Hub_04(d) 9339 | -5/Archives | Discovered exit to Hub_04(d) (range 15) 9365 | -5/Archives | Discovered exit to Hub_04(d) (range 15) 9372 | -5/Archives | Build established: Scavenger-Gunner 9492 | -5/Archives | Unable to access archive contents 9510 | -5/Archives | Unable to access archive contents 9531 | -5/Archives | Unable to access archive contents 9705 | -5/Archives | Entered Factory 9705 | -4/Factory | Evolved 2 slots: Utility x2 10098 | -4/Factory | Identified exit to Upper Caves 10098 | -4/Factory | Discovered exit to Upper Caves (range 8) 10147 | -4/Factory | Found Powered Armor 10223 | -4/Factory | Entered Upper Caves 10409 | -4/Upper Caves | Build established: Hacker-Gunner 10706 | -4/Upper Caves | Learned location of Armory (-3) 10729 | -4/Upper Caves | Attacked by a delusional Derelict stockpiling parts 10876 | -4/Upper Caves | Attracted the attention of an 0b10 outpost 11071 | -4/Upper Caves | Identified exit to Upper Caves 11071 | -4/Upper Caves | Discovered exit to Upper Caves (range 12) 11093 | -4/Upper Caves | Entered another Upper Caves area 11202 | -4/Upper Caves | Learned Research interactive machine intel 11426 | -4/Upper Caves | Identified exit to Warlord 11426 | -4/Upper Caves | Discovered exit to Warlord (range 9) 11439 | -4/Upper Caves | Entered Warlord 11503 | -4/Warlord | Build established: Scavenger-Tank 11521 | -4/Warlord | Identified exit to Proximity Caves 11521 | -4/Warlord | Discovered exit to Proximity Caves (range 14) 11558 | -4/Warlord | System corruption cleaned by Quarantine Array 12214 | -4/Warlord | Met Warlord 12239 | -4/Warlord | Warlord's base attacked by MAIN.C 12572 | -4/Warlord | Build established: Scavenger-Mutant 12589 | -4/Warlord | Warlord forces counterattacked 12646 | -4/Warlord | Spotted Striker 12651 | -4/Warlord | Allies destroyed Striker 12696 | -4/Warlord | Spotted B-90 Cyclops 12722 | -4/Warlord | Found Prototype Ballistic Cannon 12726 | -4/Warlord | Identified Hvy. Autocannon 12733 | -4/Warlord | Found Hvy. Autocannon 12745 | -4/Warlord | Spotted Striker 12762 | -4/Warlord | Spotted B-86 Titan 12774 | -4/Warlord | Destroyed Striker 12795 | -4/Warlord | Spotted Executioner 12816 | -4/Warlord | Core integrity fell below 50% 12816 | -4/Warlord | Released all parts (7) 12823 | -4/Warlord | Core integrity fell below 20% 12825 | -4/Warlord | Destroyed by Executioner with Helical Railgun Last Messages --------------- 12818_ Critical hit (Burn: +37). 12818_ Penetrated by Slug. 12818_ Slug penetrates Earth. 12819_ Penetrated by Slug. 12819_ Slug penetrates System Quarantine Field Array. 12820_ Penetrated by Slug. 12820_ S-27 Virus destroyed. 12821_ P-80 Master resets S-27 Virus, system corruption cleaned. 12821_ Acquired 18 matter. 12822_ Critical hit (Burn: +37). 12822_ Penetrated by Slug. 12822_ Enh. Autogun destroyed. 12822_ Penetrated by Slug. 12823_ Slug penetrates System Quarantine Field Array. 12823_ Acquired 9 matter. 12824_ Penetrated by Slug. 12825_ System corrupted: Component data lost. 12825_ Mak. Shrapnel Gun destroyed. 12825_ Penetrated by Slug. [Achievement: This Is Interesting...] Map ----- +----------------------------------------------------+ | """ #??????????????????????????????????????? | | ##?????????????????????????????????????? | | #?????????????????????????????????????? | | # ##### #????????????????????????????????#????? | | # #???# #??????????????????????????????? #??? | | # #???# #?????????????????????????????? > #?? | | #####+####?????????????????????????? ??? | | ## #???????????? ????????????? ???? | | ### #????????????? ???????????? #???? | | *[# # #?????????????? ?????????? ????? | | =*#"# #??????????????? ????????? #????? | | =[%=########???????????????# ?????### #?????? | | *[!%# #??????????????????# ???## ??????? | | =*!# # #??????????????????# ?? ???????? | | %[![ # ?##?????????????????# ### #????????? | | % ### #??????????????????# #?????????? | | #[ #????????????????????# ##????????? | | #?""??????????????????# #????????? | | [ # ##""#?????????????????## ##???????? | | #""#??????????????????## #?????##? | | ! # ""######??????????????## ##??? #? | | ! "" % ###########?????## ##? #?? | | %] *"" = " """""#??????## # #??? | | !=! "" """"""#?####?## #???? | | % * *=%! = ! * ### ### #???? | | *= [=!%%! !%E % @ ; ;# #??? | | =%= %[!%%%*%%h*h% = %g + ;;## #??? | | %]!%!%!*!]g=p/ s e g #### ;; # #??? | | =%![[= =%=%"" ! " """;#?## #???? #??? | | ]!%!=[ %!]!"" """##??# #???? ??? | | *]== * !] "" ########???# ##???? #?? | | %%=*"" # #"" # ????????## #????? #?? | | %= # # #"" # #######??????## #???? ???? | | #######""# # #????????????# ##???? ???? | | % #?????#""# # #???????????## ##????? ???? | | #?????#""#####???????????# #?????? #???? | | "" ??????""????????????????# #?????? #???? | | "" ????????????????????????# ^##?????? #???? | | ? ????????????????????????# #??????? ##??? | | ? ???????????????????????## ##????## #??? | | ? ??????????????????????## ##??## #??? | | ?##????????????????????????# ##?# #??? | | ???????????????????????##### ## ### #??? | | ??????????????????????## # #### ## #??? | | ??????????????????????# #?## ## #??? | | ??????????????????????# #??# ## ##??? | | ??????????????????????# ## #?## #???? | | ??????????????????????###### #??### ##???? | | ??????????????????????????? ##????######????? | | ???????????????????????????####???????????????? | +----------------------------------------------------+ Best States ------------- Heat Dissipation 81 Coolant Potential 80 Energy Generation 37 Energy Capacity 550 Matter Stores 450 Matter Capacity 450 Sight Range 16 Terrain Scan Range 24 Terrain Scan Density 10 Base Temperature (-) 150 Armor Coverage 2350 Resistance: KI 35 Resistance: TH 35 Resistance: EX 35 Resistance: EM 35 Resistance: I 35 Resistance: S 35 Resistance: P 35 Core Shielding 20 Propulsion Shielding 33 Point Defense Rating 80 Melee Speed Boost 30 Phase Shifting 5 Evasion (%) 60 Targeting Accuracy 24 Target Analysis 5 Core Analysis 6 Armor Integrity Analysis 30 Recoil Reduction 5 Offensive Hacking 32 Defensive Hacking 14 Item Schematics ----------------- None Robot Schematics ------------------ None Fabricated ------------ Nothing Alien Tech Used ----------------- None Achievements -------------- A New Friend Armchair Analyst Close Call Dramatic Entrance Explorer Hunted I Survived The Infestation Prison Break This Is Interesting... Turtlemind Challenges ------------ None Game ------ Seed HardcellGravmagClaws Manual? 0 Play Time 08:01:17 Cumulative 80.1 hours Start 2021.06.05 @ 20:38:19 End 2021.06.09 @ 21:21:01 Sessions 39 Manual Loads 0 Difficulty Explorer Special Mode None Game No. 13 Rogue 0 Adventurer 7 Explorer 6 Win Type - Total 1 Types 1/0/0/0/0/0/0/0/0 Lore% 31 Gallery% 40 Achievement% 32 Wizard Run 0 Options --------- ASCII 0 Keyboard 1 Movement Vi Keybinds 0 Fullscreen 2 Font 20/Terminus Map View 66x50 Tactical HUD 1 Map Filters NONE Filters NONE Steam 1 RUN: fdee81e0-bc71-494c-a007-3c84bc55b91e